[Event "1st Turkish League 2017"]
[Site "Konya"]
[Date "2017.07.17"]
[Round "1"]
[White "Saim, Sida"]
[Black "Aslan, Lina"]
[Result "1/2-1/2"]
[ECO "D46"]
[WhiteElo "1634"]
[BlackElo "1481"]
[Annotator "NA"]
[PlyCount "195"]
[EventType "team-tourn"]
[EventCountry "TUR"]
[SourceTitle "playchess.com"]
[Source "ChessBase"]
[SourceQuality "1"]
[TimeControl "5400+30"]

1. d4 {[%emt 0:00:30]} d5 {[%emt 0:01:00]} 2. Nf3 {[%emt 0:00:30]} Nf6 {[%emt 0:00:00]} 3. c4 {[%emt 0:00:00]} c6 {[%emt 0:00:00]} 4. e3 {[%emt 0:00:00]} e6 {[%emt 0:00:30]} 5. Nc3 {[%emt 0:00:30]} Nbd7 {[%emt 0:00:30]} 6. Bd3 {[%emt 0:01:30]} Bd6 {[%emt 0:00:30]} 7. e4 {[%emt 0:02:30]} dxe4 {[%emt 0:15:30]} 8. Bxe4 {[%emt 0:01:30]} O-O {[%emt 0:01:30]} 9. O-O {[%emt 0:02:30]} e5 {[%emt 0:07:30]} 10. Bg5 {[%emt 0:18:30]} h6 {[%emt 0:12:30]} 11. Bh4 {[%emt 0:03:30]} exd4 {[%emt 0:07:30]} 12. Qxd4 {[%emt 0:04:30]} Qc7 {[%emt 0:05:30]} 13. Bg3 {[%emt 0:08:30]} Bxg3 {[%emt 0:03:30]} 14. hxg3 {[%emt 0:00:30]} Re8 {[%emt 0:02:30]} 15. Rae1 {[%emt 0:08:30]} Nf8 {[%emt 0:06:30]} 16. Bb1 {[%emt 0:06:30]} Be6 {[%emt 0:12:30]} 17. b3 {[%emt 0:03:30]} N8d7 {[%emt 0:05:03]} 18. Re2 {[%emt 0:05:30]} b6 {[%emt 0:06:13]} 19. Rfe1 {[%emt 0:10:53]} Rad8 {[%emt 0:04:45]} 20. Ne4 {[%emt 0:03:14]} Nxe4 {[%emt 0:02:18]} 21. Qxe4 {[%emt 0:00:18]} Nf6 {[%emt 0:00:00]} 22. Qc2 {[%emt 0:00:18]} Rd6 {[%emt 0:01:11]} 23. c5 {[%emt 0:03:42]} Rd5 {[%emt 0:01:01]} 24. cxb6 {[%emt 0:01:47]} axb6 {[%emt 0:00:10]} 25. Nd2 {[%emt 0:04:29]} Red8 {[%emt 0:01:19]} 26. Ne4 {[%emt 0:02:04]} Nxe4 {[%emt 0:01:36]} 27. Qxe4 {[%emt 0:00:04]} g6 {[%emt 0:00:33]} 28. Qe3 {[%emt 0:00:14]} Kh7 {[%emt 0:00:42]} 29. Bc2 {[%emt 0:02:05]} c5 {[%emt 0:00:54]} 30. Qf3 {[%emt 0:01:40]} R5d6 {[%emt 0:00:54]} 31. Qf4 {[%emt 0:00:43]} Qd7 {[%emt 0:00:31]} 32. f3 {[%emt 0:01:32]} Rd2 {[%emt 0:00:55]} 33. Kh2 {[%emt 0:00:57]} Rxe2 {[%emt 0:00:30]} 34. Rxe2 {[%emt 0:00:00]} Qd4 {[%emt 0:00:18]} 35. Re4 {[%emt 0:00:42]} Qd2 {[%emt 0:00:32]} 36. Qf6 {[%emt 0:00:35]} Qd7 {[%emt 0:00:36]} 37. Re5 {[%emt 0:01:41]} Re8 {[%emt 0:00:26]} 38. Rh5 {[%emt 0:01:19]} Qe7 {[%emt 0:00:48]} 39. Qf4 {[%emt 0:00:23]} Qf8 {[%emt 0:00:00]} 40. Qc7 {[%emt 0:01:03]} Kg7 {[%emt 0:00:14]} 41. Re5 {[%emt 0:00:05]} Qe7 {[%emt 0:01:48]} 42. Qxb6 {[%emt 0:00:21]} Rc8 {[%emt 0:00:00]} 43. Qb5 {[%emt 0:01:14]} Qc7 {[%emt 0:00:28]} 44. Re3 {[%emt 0:00:32]} Qa7 {[%emt 0:00:32]} 45. a4 {[%emt 0:00:52]} c4 {[%emt 0:00:34]} 46. Qe5+ {[%emt 0:00:40]} Kg8 {[%emt 0:00:10]} 47. Bxg6 {[%emt 0:00:08]} cxb3 {[%emt 0:00:39]} 48. Bb1 {[%emt 0:00:44]} Qxa4 {[%emt 0:00:30]} 49. Re4 {[%emt 0:00:25]} Qd7 {[%emt 0:00:36]} 50. Rd4 {[%emt 0:00:22]} Qc6 {[%emt 0:00:22]} 51. Qe3 {[%emt 0:00:35]} Qc1 {[%emt 0:00:34]} 52. Rd8+ {[%emt 0:00:12]} Kg7 {[%emt 0:00:25]} 53. Qd4+ {[%emt 0:01:06]} f6 {[%emt 0:00:00]} 54. Be4 {[%emt 0:00:31]} b2 {[%emt 0:00:10]} 55. Rd6 {[%emt 0:00:12]} b1=Q {[%emt 0:01:51]} 56. Bxb1 {[%emt 0:00:30]} Qxb1 {[%emt 0:00:00]} 57. Rxe6 {[%emt 0:00:00]} Rf8 {[%emt 0:00:05]} 58. Re4 {[%emt 0:00:39]} Qb7 {[%emt 0:00:23]} 59. Qd6 {[%emt 0:00:00]} Rf7 {[%emt 0:00:42]} 60. Rg4+ {[%emt 0:01:11]} Kh7 {[%emt 0:00:32]} 61. Qd8 {[%emt 0:00:28]} Rg7 {[%emt 0:00:28]} 62. Rf4 {[%emt 0:00:37]} Qf7 {[%emt 0:00:51]} 63. Qxf6 {[%emt 0:00:16]} Qh5+ {[%emt 0:00:23]} 64. Qh4 {[%emt 0:00:17]} Qe5 {[%emt 0:00:51]} 65. Re4 {[%emt 0:00:21]} Qf5 {[%emt 0:00:31]} 66. Re7 {[%emt 0:00:55]} Qg6 {[%emt 0:00:31]} 67. Rxg7+ {[%emt 0:00:28]} Qxg7 {[%emt 0:00:05]} 68. Qe4+ {[%emt 0:00:29]} Kg8 {[%emt 0:00:35]} 69. Qe6+ {[%emt 0:00:21]} Kh7 {[%emt 0:00:00]} 70. Kh3 {[%emt 0:00:37]} Qg5 {[%emt 0:00:26]} 71. Qe4+ {[%emt 0:00:28]} Kh8 {[%emt 0:00:41]} 72. Qg4 {[%emt 0:00:13]} Qf6 {[%emt 0:00:00]} 73. Qc8+ {[%emt 0:00:55]} Kh7 {[%emt 0:00:10]} 74. f4 {[%emt 0:00:19]} Qf7 {[%emt 0:00:51]} 75. Qg4 {[%emt 0:00:42]} Qf6 {[%emt 0:01:13]} 76. Qd7+ {[%emt 0:00:43]} Kh8 {[%emt 0:00:34]} 77. Qc8+ {[%emt 0:00:30]} Kh7 {[%emt 0:00:13]} 78. Qc7+ {[%emt 0:00:00]} Kg8 {[%emt 0:00:30]} 79. g4 {[%emt 0:00:07]} Qe6 {[%emt 0:00:42]} 80. Qe5 {[%emt 0:00:31]} Qd7 {[%emt 0:00:55]} 81. g3 {[%emt 0:01:20]} Qd1 {[%emt 0:00:36]} 82. Qe8+ {[%emt 0:00:50]} Kg7 {[%emt 0:00:19]} 83. Qe7+ {[%emt 0:00:18]} Kg8 {[%emt 0:00:23]} 84. Qe6+ {[%emt 0:00:00]} Kg7 {[%emt 0:00:44]} 85. Qe5+ {[%emt 0:00:04]} Kg8 {[%emt 0:00:14]} 86. Qb8+ {[%emt 0:00:07]} Kg7 {[%emt 0:00:32]} 87. Qb7+ {[%emt 0:00:30]} Kg8 {[%emt 0:00:00]} 88. Qg2 {[%emt 0:00:09]} h5 {[%emt 0:01:07]} 89. Qa8+ {[%emt 0:00:35]} Kg7 {[%emt 0:00:09]} 90. Qb7+ {[%emt 0:00:04]} Kg8 {[%emt 0:00:09]} 91. Qc8+ {[%emt 0:00:34]} Kg7 {[%emt 0:00:15]} 92. Kh4 {[%emt 0:01:13]} Qh1+ {[%emt 0:00:30]} 93. Kg5 {[%emt 0:00:30]} Qd5+ {[%emt 0:00:30]} 94. Kh4 {[%emt 0:00:30]} Qh1+ {[%emt 0:00:30]} 95. Kg5 {[%emt 0:00:30]} Qd5+ {[%emt 0:00:30]} 96. Kh4 {[%emt 0:00:30]} Qh1+ {[%emt 0:00:30]} 97. Kg5 {[%emt 0:00:30]} Qd5+ {[%emt 0:00:30]} 98. f5 {[%emt 0:00:17]} 1/2-1/2

[Event "1st Turkish League 2017"]
[Site "Konya"]
[Date "2017.07.17"]
[Round "1"]
[White "Aydin, Gulenay"]
[Black "Sahin, Hayrun Nisa"]
[Result "1/2-1/2"]
[ECO "B27"]
[WhiteElo "1591"]
[BlackElo "1576"]
[Annotator "NA"]
[PlyCount "83"]
[EventType "team-tourn"]
[EventCountry "TUR"]
[SourceTitle "playchess.com"]
[Source "ChessBase"]
[SourceQuality "1"]
[TimeControl "5400+30"]

1. e4 c5 2. Nf3 g6 {[%emt 0:00:30]} 3. d4 {[%emt 0:00:30]} cxd4 {[%emt 0:00:30]} 4. Qxd4 {[%emt 0:00:30]} Nf6 {[%emt 0:00:00]} 5. e5 {[%emt 0:00:30]} Nc6 {[%emt 0:00:00]} 6. Qa4 {[%emt 0:00:00]} Nd5 {[%emt 0:00:30]} 7. Qe4 {[%emt 0:00:00]} Ndb4 {[%emt 0:00:30]} 8. Bb5 {[%emt 0:00:30]} Qa5 {[%emt 0:01:30]} 9. Nc3 {[%emt 0:00:30]} Bg7 {[%emt 0:01:30]} 10. O-O {[%emt 0:10:30]} O-O {[%emt 0:01:30]} 11. Bf4 {[%emt 0:13:30]} d5 {[%emt 0:15:30]} 12. exd6 {[%emt 0:07:30]} Bf5 {[%emt 0:00:30]} 13. Qc4 {[%emt 0:11:30]} Nxc2 {[%emt 0:11:30]} 14. Bxc6 {[%emt 0:14:30]} bxc6 {[%emt 0:02:30]} 15. dxe7 {[%emt 0:02:30]} Rfe8 {[%emt 0:02:30]} 16. Rad1 {[%emt 0:05:30]} Rxe7 {[%emt 0:11:30]} 17. a3 {[%emt 0:07:30]} Nxa3 {[%emt 0:09:30]} 18. Qxc6 {[%emt 0:08:50]} Rc8 {[%emt 0:02:30]} 19. Qd6 {[%emt 0:00:42]} Rd7 {[%emt 0:06:30]} 20. Qxa3 {[%emt 0:01:06]} Qxa3 {[%emt 0:00:30]} 21. bxa3 {[%emt 0:00:06]} Bxc3 {[%emt 0:02:30]} 22. Rxd7 {[%emt 0:02:46]} Bxd7 {[%emt 0:00:30]} 23. Rd1 {[%emt 0:00:43]} Bf5 {[%emt 0:02:30]} 24. Rc1 {[%emt 0:01:12]} Bb2 {[%emt 0:07:35]} 25. Rxc8+ {[%emt 0:00:37]} Bxc8 {[%emt 0:00:25]} 26. Bd6 {[%emt 0:01:10]} Bb7 {[%emt 0:00:30]} 27. Ne5 {[%emt 0:01:47]} Bxe5 {[%emt 0:01:51]} 28. Bxe5 {[%emt 0:00:30]} f5 {[%emt 0:00:30]} 29. f4 {[%emt 0:00:30]} Kf7 {[%emt 0:00:30]} 30. Kf2 {[%emt 0:00:30]} Ke6 {[%emt 0:00:30]} 31. g3 {[%emt 0:00:30]} Kd5 {[%emt 0:00:30]} 32. Ke3 {[%emt 0:00:30]} Bc6 {[%emt 0:00:30]} 33. Bd4 {[%emt 0:00:30]} a6 {[%emt 0:00:30]} 34. Be5 {[%emt 0:00:30]} Kc4 {[%emt 0:00:30]} 35. Bg7 {[%emt 0:00:30]} Bd5 {[%emt 0:00:30]} 36. Bf6 {[%emt 0:00:30]} Ba8 {[%emt 0:00:30]} 37. Bg7 {[%emt 0:00:30]} Bg2 {[%emt 0:00:30]} 38. Bf6 {[%emt 0:00:30]} Bc6 {[%emt 0:00:30]} 39. Bg7 {[%emt 0:00:30]} Bb7 {[%emt 0:00:30]} 40. Bf6 {[%emt 0:00:30]} Kd5 {[%emt 0:00:30]} 41. Be5 {[%emt 0:00:30]} Bc6 {[%emt 0:00:30]} 42. Bf6 {[%emt 0:00:30]} 1/2-1/2

[Event "1st Turkish League 2017"]
[Site "Konya"]
[Date "2017.07.18"]
[Round "2"]
[White "Erturan, Yakup"]
[Black "Koc, Ilkay"]
[Result "1-0"]
[ECO "A09"]
[WhiteElo "2371"]
[BlackElo "2074"]
[Annotator "NA"]
[PlyCount "81"]
[EventType "team-tourn"]
[EventCountry "TUR"]
[SourceTitle "playchess.com"]
[Source "ChessBase"]
[SourceQuality "1"]
[TimeControl "5400+30"]

{[%evp 13,81,0,4,32767,-4,-5,32767,10,29,0,-16,-28,0,-96,-60,-83,-80,-76,-67,-89,62,37,49,64,99,72,32767,65,59,43,88,25,32,39,44,14,25,32767,32767,32767,32767,32767,32767,32767,32767,32767,32767,32767,32767,32767,32767,32767,32767,32767,190,198,204,32767,32767,32767,32767,32767,32767,370,558,571,603,661,615,571]} 1. Nf3 {[%emt 0:00:30]} d5 {[%emt 0:01:00]} 2. c4 {[%emt 0:00:30]} d4 {[%emt 0:00:00]} 3. b4 {[%emt 0:02:30]} g6 {[%emt 0:00:00]} 4. d3 {[%emt 0:02:30] A09: Réti Opening: 1 Nf3 d5 2 c4} Bg7 {[%emt 0:01:30]} 5. g3 {[%emt 0:00:30]} e5 {[%emt 0:00:00]} 6. Bg2 {[%emt 0:01:30]} (6. Nbd2 Ne7 7. Bg2 O-O 8. O-O h6 9. a4 a5 10. b5 c5 11. bxc6 Nexc6 12. Ba3 Nb4 13. Ne1 N8a6 14. Nc2 Re8 15. Bxb4 axb4 16. Nb3 {½-½ (70) Kramnik,V (2777)-Andreikin,D (2720) Baku 2015}) 6... Ne7 {[%emt 0:00:00]} 7. Bb2 {[%emt 0:00:30] LiveBook: 22 Games} O-O {[%emt 0:00:00]} 8. O-O {[%emt 0:00:30]} Nd7 {[%emt 0:03:00]} 9. Nbd2 {[%emt 0:03:30]} h6 {[%emt 0:04:30]} 10. Qc2 {[%emt 0:03:30]} a5 $146 {[%emt 0:13:30]} ({Predecessor:} 10... c6 11. Rfe1 Qc7 12. e3 dxe3 13. Rxe3 Nf5 14. Re2 a5 15. bxa5 Rxa5 {½-½ (50) Krug Cortegoso,R (2038)-Cordero,A (2229) Ourense 2006}) 11. a3 {[%emt 0:02:30]} c5 {[%emt 0:03:30]} 12. Qb3 {[%emt 0:18:30]} Nc6 {[%emt 0:09:30]} 13. bxa5 {[%emt 0:06:30]} (13. b5 $11 Ne7 14. Rae1) 13... Rxa5 {[%emt 0:03:30]} 14. Rfb1 {[%emt 0:03:30]} Kh7 {[%emt 0:07:30]} 15. Qc2 {[%emt 0:00:30]} f5 {[%emt 0:00:00]} 16. Re1 {[%emt 0:02:30]} Nf6 {[%emt 0:06:00]} ({Better is} 16... Qc7 $17) 17. Nb3 {[%emt 0:01:30]} Ra8 {[%emt 0:15:30]} 18. Nxc5 {[%emt 0:00:30]} Qe7 {[%emt 0:00:30]} 19. Nb3 {[%emt 0:00:30]} Be6 {[%emt 0:00:30]} 20. Nbd2 {[%emt 0:14:30]} Qf7 {[%emt 0:01:30]} 21. h3 {[%emt 0:04:30]} Rfc8 {[%emt 0:02:30]} 22. a4 {[%emt 0:00:30]} Nd7 {[%emt 0:03:30]} 23. Nb3 {[%emt 0:03:30]} Ra6 {[%emt 0:04:49]} 24. Qd2 {[%emt 0:04:30]} Rb6 {[%emt 0:02:10]} 25. Qc2 {[%emt 0:03:21]} Ra8 {[%emt 0:00:50]} 26. Nfd2 {[%emt 0:02:27]} Rba6 {[%emt 0:06:46]} 27. a5 {[%emt 0:00:51]} Bf8 {[%emt 0:04:25]} 28. e3 {[%emt 0:00:38]} dxe3 {[%emt 0:00:24]} 29. Rxe3 {[%emt 0:00:36]} Rd8 {[%emt 0:01:04]} 30. Rae1 {[%emt 0:01:35]} Bg7 {[%emt 0:00:10]} 31. Bc3 {[%emt 0:01:01]} Raa8 {[%emt 0:00:46]} 32. Qb2 {[%emt 0:02:34]} Rac8 {[%emt 0:02:14]} 33. f4 {[%emt 0:00:28]} Bf8 {[%emt 0:03:30]} 34. fxe5 {[%emt 0:01:09]} Nc5 {[%emt 0:00:12]} 35. Qc2 {[%emt 0:01:55]} Na4 {[%emt 0:00:07]} 36. Ba1 {[%emt 0:00:35]} Nb4 {[%emt 0:00:31]} 37. Qb1 {[%emt 0:00:11]} Qd7 {[%emt 0:00:06]} 38. Nd4 {[%emt 0:01:44]} Bc5 {[%emt 0:00:55]} (38... b5 {was worth a try.} 39. axb6 (39. cxb5 Ba2 $18) 39... Nxb6) 39. Nxe6 {[%emt 0:00:21]} Qxe6 {[%emt 0:01:35]} 40. d4 {[%emt 0:00:27]} Bf8 {[%emt 0:01:04]} 41. Qb3 $18 {[%emt 0:01:49]} 1-0

[Event "1st Turkish League 2017"]
[Site "Konya"]
[Date "2017.07.20"]
[Round "2"]
[White "Khukhashvili, Sopiko"]
[Black "Yilmaz, Ezgi"]
[Result "1-0"]
[ECO "B20"]
[WhiteElo "2339"]
[BlackElo "1836"]
[Annotator "ChessBase"]
[PlyCount "123"]
[EventType "team-tourn"]
[EventCountry "TUR"]
[SourceTitle "playchess.com"]
[Source "ChessBase"]
[SourceQuality "1"]
[TimeControl "5400+30"]

1. e4 {[%emt 0:00:30]} c5 {[%emt 0:01:00]} 2. b3 {[%emt 0:00:30]} Nc6 {[%emt 0:00:30]} 3. Bb2 {[%emt 0:00:00]} d6 {[%emt 0:02:30]} 4. Bb5 {[%emt 0:01:00]} e6 {[%emt 0:02:30]} 5. Bxc6+ {[%emt 0:00:30]} bxc6 {[%emt 0:00:30]} 6. Qe2 {[%emt 0:00:30]} e5 {[%emt 0:06:30]} 7. Nf3 {[%emt 0:03:30]} Nf6 {[%emt 0:01:30]} 8. h3 {[%emt 0:02:30]} g6 {[%emt 0:03:30]} 9. Na3 {[%emt 0:00:30]} Bg7 {[%emt 0:01:30]} 10. Nc4 {[%emt 0:00:30]} Be6 {[%emt 0:04:30]} 11. d3 {[%emt 0:00:30]} Nh5 {[%emt 0:03:30]} 12. g3 {[%emt 0:00:30]} O-O {[%emt 0:01:30]} 13. O-O-O {[%emt 0:00:30]} a5 {[%emt 0:01:30]} 14. a4 {[%emt 0:00:00]} f6 {[%emt 0:05:30]} 15. Ba3 {[%emt 0:03:00]} Rf7 {[%emt 0:01:30]} 16. Nh4 {[%emt 0:02:30]} d5 {[%emt 0:09:30]} 17. Nd2 {[%emt 0:00:30]} Bf8 {[%emt 0:00:30]} 18. Ng2 {[%emt 0:00:30]} c4 {[%emt 0:06:30]} 19. Bxf8 {[%emt 0:00:30]} Qxf8 {[%emt 0:00:00]} 20. dxc4 {[%emt 0:01:30]} Qa3+ {[%emt 0:04:00]} 21. Kb1 {[%emt 0:00:00]} Rb7 {[%emt 0:13:30]} 22. exd5 {[%emt 0:05:00]} cxd5 {[%emt 0:02:30]} 23. g4 {[%emt 0:16:30]} Ng7 {[%emt 0:04:30]} 24. Ne3 {[%emt 0:14:30]} dxc4 {[%emt 0:05:20]} 25. Nexc4 {[%emt 0:01:30]} Qxa4 {[%emt 0:01:02]} 26. Nb2 {[%emt 0:03:30]} Qc6 {[%emt 0:01:33]} 27. Ne4 {[%emt 0:02:30]} Ne8 {[%emt 0:00:17]} 28. Qf3 {[%emt 0:05:30]} Bd5 {[%emt 0:02:20]} 29. Rxd5 {[%emt 0:00:30]} Qxd5 {[%emt 0:00:30]} 30. Rd1 {[%emt 0:00:30]} Qf7 {[%emt 0:02:13]} 31. Nc5 {[%emt 0:00:00]} Rba7 {[%emt 0:00:35]} 32. Nba4 {[%emt 0:00:00]} Rc8 {[%emt 0:01:02]} 33. h4 {[%emt 0:03:30]} Rac7 {[%emt 0:04:53]} 34. Qd5 {[%emt 0:00:30]} Qxd5 {[%emt 0:01:12]} 35. Rxd5 {[%emt 0:00:00]} Kf7 {[%emt 0:01:23]} 36. c4 {[%emt 0:00:00]} Ke7 {[%emt 0:01:30]} 37. g5 {[%emt 0:02:30]} Ng7 {[%emt 0:04:40]} 38. Ne4 {[%emt 0:00:30]} Ne8 {[%emt 0:01:03]} 39. gxf6+ {[%emt 0:01:30]} Nxf6 {[%emt 0:01:03]} 40. Rxe5+ {[%emt 0:00:00]} Kf7 {[%emt 0:00:40]} 41. Nd6+ {[%emt 0:00:00]} Kf8 {[%emt 0:00:30]} 42. Nxc8 {[%emt 0:00:30]} Rxc8 {[%emt 0:00:00]} 43. Rxa5 {[%emt 0:00:00]} Ne4 {[%emt 0:00:03]} 44. f4 {[%emt 0:02:00]} Nd2+ {[%emt 0:00:53]} 45. Kc2 {[%emt 0:00:30]} Nxc4 {[%emt 0:00:32]} 46. Rc5 {[%emt 0:02:30]} Ne3+ {[%emt 0:00:34]} 47. Kd3 {[%emt 0:00:00]} Re8 {[%emt 0:00:37]} 48. Re5 {[%emt 0:03:00]} Ng2 {[%emt 0:00:16]} 49. Rxe8+ {[%emt 0:01:30]} Kxe8 {[%emt 0:00:03]} 50. Ke4 {[%emt 0:01:30]} Nxh4 {[%emt 0:00:19]} 51. Nc5 {[%emt 0:00:30]} Nf5 {[%emt 0:00:54]} 52. b4 {[%emt 0:02:30]} Nd6+ {[%emt 0:00:39]} 53. Kd5 {[%emt 0:02:30]} Ke7 {[%emt 0:00:31]} 54. Ne6 {[%emt 0:01:35]} h6 {[%emt 0:00:44]} 55. Nd4 {[%emt 0:02:42]} Kd7 {[%emt 0:00:25]} 56. Ke5 {[%emt 0:02:00]} Ke7 {[%emt 0:00:38]} 57. b5 {[%emt 0:00:46]} Nc4+ {[%emt 0:00:38]} 58. Kd5 {[%emt 0:00:11]} Nd6 {[%emt 0:00:20]} 59. Nc6+ {[%emt 0:00:39]} Kd7 {[%emt 0:00:56]} 60. Ne5+ {[%emt 0:00:05]} Kc7 {[%emt 0:00:38]} 61. b6+ {[%emt 0:00:23]} Kxb6 {[%emt 0:00:19]} 62. Kxd6 {[%emt 0:00:01]} 1-0

[Event "1st Turkish League 2017"]
[Site "Konya"]
[Date "2017.07.18"]
[Round "2"]
[White "Dedebas, Emre Emin"]
[Black "Firat, Mehmet Bugra"]
[Result "1-0"]
[ECO "D23"]
[WhiteElo "2322"]
[BlackElo "1586"]
[Annotator "NA"]
[PlyCount "127"]
[EventType "team-tourn"]
[EventCountry "TUR"]
[SourceTitle "playchess.com"]
[Source "ChessBase"]
[SourceQuality "1"]
[TimeControl "5400+30"]

1. d4 {[%emt 0:00:30]} d5 {[%emt 0:01:00]} 2. c4 {[%emt 0:00:00]} c6 {[%emt 0:00:30]} 3. Nf3 {[%emt 0:00:00]} Nf6 {[%emt 0:00:30]} 4. Qc2 {[%emt 0:00:00]} dxc4 {[%emt 0:01:30]} 5. Qxc4 {[%emt 0:02:00]} Bf5 {[%emt 0:00:30]} 6. g3 {[%emt 0:00:30]} e6 {[%emt 0:02:30]} 7. Bg2 {[%emt 0:00:30]} Nbd7 {[%emt 0:00:30]} 8. O-O {[%emt 0:01:30]} Be7 {[%emt 0:04:30]} 9. Nc3 {[%emt 0:05:30]} Ne4 {[%emt 0:14:30]} 10. Bf4 {[%emt 0:07:30]} O-O {[%emt 0:03:30]} 11. Rfe1 {[%emt 0:28:30] LiveBook: 50 Games} Re8 {[%emt 0:05:30] D23: Queen's Gambit Accepted: 3 Nf3 Nf6 sidelines} (11... Nxc3 12. bxc3 Be4 13. Qb3 c5 14. Ne5 Bxg2 15. Kxg2 Nxe5 16. Bxe5 Qd7 17. e4 b5 18. Rad1 c4 19. Qc2 {0-1 (52) Brunello,S (2587)-Kobalia,M (2666) Plovdiv 2012}) 12. Ne5 {[%emt 0:12:30]} Nxe5 {[%emt 0:08:30]} 13. dxe5 {[%emt 0:12:30]} Nxc3 {[%emt 0:06:30]} 14. bxc3 $146 {[%emt 0:05:30]} ({Predecessor:} 14. Qxc3 Bg4 15. h3 Bh5 16. Be3 Qc7 17. Rac1 Red8 18. a3 {½-½ (18) Figlio,G (2447)-Cilloniz Razzeto,A (2440) ICCF email 2009}) 14... Qc7 {[%emt 0:15:30]} 15. h4 {[%emt 0:04:19]} h6 {[%emt 0:06:30]} 16. h5 {[%emt 0:11:13]} Red8 {[%emt 0:02:30]} 17. Bf3 {[%emt 0:00:34]} Rac8 {[%emt 0:04:55]} 18. a4 {[%emt 0:00:06]} Rd7 {[%emt 0:07:41]} 19. a5 {[%emt 0:00:52]} Bh7 {[%emt 0:03:32]} 20. Kg2 {[%emt 0:01:37]} Rdd8 {[%emt 0:05:10]} 21. Qb3 {[%emt 0:03:04]} Bc5 {[%emt 0:01:07]} 22. Ra4 {[%emt 0:00:10]} b5 {[%emt 0:02:03]} 23. axb6 {[%emt 0:00:10]} Qxb6 {[%emt 0:00:55]} 24. Qxb6 {[%emt 0:00:40]} Bxb6 {[%emt 0:00:47]} 25. Rea1 {[%emt 0:02:12]} Bc2 {[%emt 0:01:29]} 26. R4a3 {[%emt 0:00:23]} Rc7 {[%emt 0:01:02]} 27. R1a2 {[%emt 0:00:21]} Bb1 {[%emt 0:00:20]} 28. Rb2 {[%emt 0:00:14]} Bf5 {[%emt 0:00:18]} 29. Ra6 {[%emt 0:00:24]} Kf8 {[%emt 0:00:30]} 30. g4 {[%emt 0:00:00]} Bh7 {[%emt 0:00:42]} 31. g5 {[%emt 0:00:00]} hxg5 {[%emt 0:00:10]} 32. Bxg5 {[%emt 0:00:03]} Rdc8 {[%emt 0:00:40]} 33. Rb4 {[%emt 0:00:30]} Bf5 $16 {[%emt 0:00:31]} 34. Bg4 {[%emt 0:02:07]} Bxg4 {[%emt 0:00:39]} 35. Rxg4 {[%emt 0:00:01]} Rd7 {[%emt 0:00:40]} 36. h6 {[%emt 0:00:08]} gxh6 {[%emt 0:00:35]} 37. Bxh6+ {[%emt 0:00:23]} Ke7 {[%emt 0:00:07]} 38. Bg5+ {[%emt 0:02:18]} f6 {[%emt 0:00:29]} 39. Bxf6+ {[%emt 0:00:14]} Kf8 {[%emt 0:00:21]} 40. Raa4 {[%emt 0:00:23]} Rh7 {[%emt 0:00:54]} 41. Raf4 {[%emt 0:00:10]} Ke8 {[%emt 0:00:00]} 42. Bg7 {[%emt 0:00:52]} Rc7 {[%emt 0:00:44]} 43. Rf8+ {[%emt 0:00:26]} Kd7 {[%emt 0:00:17]} 44. Rf3 {[%emt 0:01:02]} Kc8 {[%emt 0:00:30]} 45. Bf8 {[%emt 0:00:00]} Kb7 {[%emt 0:00:31]} 46. c4 {[%emt 0:00:23]} c5 {[%emt 0:00:36]} 47. Rg6 {[%emt 0:00:49]} Rc6 {[%emt 0:00:24]} 48. Bd6 {[%emt 0:00:00]} Rh4 {[%emt 0:00:47]} 49. Rc3 {[%emt 0:00:50]} a5 {[%emt 0:00:47]} 50. Rxe6 {[%emt 0:00:11]} Ka6 {[%emt 0:00:00]} 51. Kg3 {[%emt 0:00:12]} Rh1 {[%emt 0:00:26]} 52. f4 {[%emt 0:00:25]} a4 {[%emt 0:00:22]} 53. f5 {[%emt 0:00:59]} Ka5 {[%emt 0:00:44]} 54. f6 {[%emt 0:00:54]} Rf1 {[%emt 0:00:16]} 55. Re8 {[%emt 0:00:18]} Rxd6 {[%emt 0:00:50]} 56. exd6 {[%emt 0:00:30]} Rxf6 {[%emt 0:00:00]} 57. Rd3 {[%emt 0:00:28]} Rxd6 {[%emt 0:00:32]} 58. Rxd6 {[%emt 0:00:37]} Bc7 {[%emt 0:00:13]} 59. Ra8+ {[%emt 0:00:26]} Kb4 {[%emt 0:00:10]} 60. Raa6 {[%emt 0:00:04]} Kxc4 {[%emt 0:00:20]} 61. Rxa4+ {[%emt 0:00:53]} Kb3 {[%emt 0:00:30]} 62. Raa6 {[%emt 0:00:00]} c4 {[%emt 0:00:00]} 63. Kf3 {[%emt 0:00:12]} Bxd6 {[%emt 0:00:30]} 64. Rxd6 {[%emt 0:00:30]} 1-0

[Event "1st Turkish League 2017"]
[Site "Konya"]
[Date "2017.07.20"]
[Round "2"]
[White "Kilic, Efe Mert"]
[Black "Gulbeyaz, Emir"]
[Result "0-1"]
[ECO "B40"]
[WhiteElo "2287"]
[BlackElo "1952"]
[Annotator "ChessBase"]
[PlyCount "92"]
[EventType "team-tourn"]
[EventCountry "TUR"]
[SourceTitle "playchess.com"]
[Source "ChessBase"]
[SourceQuality "1"]
[TimeControl "5400+30"]

1. e4 {[%emt 0:00:30]} c5 {[%emt 0:01:00]} 2. Nf3 {[%emt 0:00:30]} e6 {[%emt 0:00:30]} 3. c4 {[%emt 0:00:00]} Nc6 {[%emt 0:00:00]} 4. Nc3 {[%emt 0:00:00]} a6 {[%emt 0:01:00]} 5. Be2 {[%emt 0:01:30]} Nd4 {[%emt 0:05:30]} 6. O-O {[%emt 0:04:30]} Ne7 {[%emt 0:02:30]} 7. d3 {[%emt 0:01:30]} g6 {[%emt 0:00:30]} 8. Be3 {[%emt 0:08:30]} Bg7 {[%emt 0:00:30]} 9. Qd2 {[%emt 0:00:00]} O-O {[%emt 0:01:30]} 10. Bh6 {[%emt 0:01:00]} d6 {[%emt 0:05:30]} 11. Rab1 {[%emt 0:07:30]} d5 {[%emt 0:20:30]} 12. Bxg7 {[%emt 0:14:30]} Kxg7 {[%emt 0:01:30]} 13. Qf4 {[%emt 0:00:30]} Nxf3+ {[%emt 0:02:30]} 14. Bxf3 {[%emt 0:02:30]} d4 {[%emt 0:05:30]} 15. Na4 {[%emt 0:04:30]} b6 {[%emt 0:01:30]} 16. b4 {[%emt 0:02:30]} Bd7 {[%emt 0:01:30]} 17. Bd1 {[%emt 0:00:30]} Bxa4 {[%emt 0:00:30]} 18. Bxa4 {[%emt 0:00:00]} Qb8 {[%emt 0:03:30]} 19. e5 {[%emt 0:06:00]} Qc7 {[%emt 0:01:30]} 20. Qf6+ {[%emt 0:03:30]} Kg8 {[%emt 0:00:00]} 21. h4 {[%emt 0:06:30]} h5 {[%emt 0:07:00]} 22. Bd1 {[%emt 0:03:30]} Nf5 {[%emt 0:05:30]} 23. g4 {[%emt 0:03:30]} hxg4 {[%emt 0:00:30]} 24. Bxg4 {[%emt 0:00:30]} Qd8 {[%emt 0:08:30]} 25. Qxd8 {[%emt 0:01:30]} Rfxd8 {[%emt 0:00:30]} 26. Bxf5 {[%emt 0:01:30]} gxf5 {[%emt 0:01:30]} 27. bxc5 {[%emt 0:01:30]} bxc5 {[%emt 0:00:00]} 28. Rb7 {[%emt 0:00:30]} Kh7 {[%emt 0:02:00]} 29. Rxf7+ {[%emt 0:01:30]} Kg6 {[%emt 0:00:00]} 30. Rf6+ {[%emt 0:00:30]} Kh5 {[%emt 0:00:00]} 31. Rb1 {[%emt 0:01:30]} Kg4 {[%emt 0:03:30]} 32. Rb6 {[%emt 0:01:30]} Kf3 {[%emt 0:00:30]} 33. Kf1 {[%emt 0:01:30]} Rh8 {[%emt 0:01:54]} 34. Rbxe6 {[%emt 0:00:30]} f4 {[%emt 0:00:03]} 35. Rxa6 {[%emt 0:04:17]} Rxa6 {[%emt 0:04:30]} 36. Rxa6 {[%emt 0:00:30]} Rxh4 {[%emt 0:00:00]} 37. Ke1 {[%emt 0:06:09]} Rh1+ {[%emt 0:00:32]} 38. Kd2 {[%emt 0:01:21]} Kxf2 {[%emt 0:00:08]} 39. Rf6 {[%emt 0:04:57]} f3 {[%emt 0:01:06]} 40. e6 {[%emt 0:00:50]} Ra1 {[%emt 0:00:45]} 41. Kc2 {[%emt 0:00:31]} Rxa2+ {[%emt 0:00:30]} 42. Kb3 {[%emt 0:00:00]} Rd2 {[%emt 0:01:17]} 43. Rf5 {[%emt 0:01:28]} Rxd3+ {[%emt 0:00:24]} 44. Kc2 {[%emt 0:00:01]} Re3 {[%emt 0:00:33]} 45. Rxc5 {[%emt 0:00:30]} Ke2 {[%emt 0:00:00]} 46. Rf5 {[%emt 0:00:06]} d3+ {[%emt 0:00:35]} 0-1